fUSD/lending_fUSD_20260613
["ID","MTS","AMOUNT","RATE_DAILY","PERIOD"]
[424952432,1781339440000,-1219.3,7.97e-05,2]
[424952402,1781339440000,-500.0,7.677e-05,2]
[424952425,1781339440000,-1185.91809648,7.777e-05,2]
[424952434,1781339440000,-25546.63,8.01e-05,2]
[424952436,1781339440000,-165.71,8.184e-05,2]
[424952439,1781339440000,-126013.5,8.219e-05,2]
[424952437,1781339440000,-2913.43,8.219e-05,2]
[424952438,1781339440000,-1492.59,8.219e-05,2]
[424952441,1781339440000,-150.99,8.219e-05,2]
[424952440,1781339440000,-999.99,8.219e-05,2]
[424952443,1781339440000,-1721.74,8.219e-05,2]
[424952442,1781339440000,-2781.3,8.219e-05,2]
[424952444,1781339440000,-2000.0,8.219e-05,2]
[424952435,1781339440000,-13448.49,8.073e-05,2]
[424952423,1781339440000,-500.0,7.776e-05,2]
[424952433,1781339440000,-150.0,8.009e-05,2]
[424952421,1781339440000,-531.43000813,7.776e-05,2]
[424952422,1781339440000,-500.0,7.776e-05,2]
[424952400,1781339440000,-500.0,7.677e-05,2]
[424952401,1781339440000,-500.0,7.677e-05,2]
[424952403,1781339440000,-500.0,7.677e-05,2]
[424952405,1781339440000,-500.0,7.677e-05,2]
[424952407,1781339440000,-500.0,7.677e-05,2]
[424952406,1781339440000,-500.0,7.677e-05,2]
[424952408,1781339440000,-500.0,7.677e-05,2]
[424952409,1781339440000,-500.0,7.677e-05,2]
[424952410,1781339440000,-500.41287869,7.677e-05,2]
[424952404,1781339440000,-500.0,7.677e-05,2]
[424952411,1781339440000,-500.41287869,7.677e-05,2]
[424952416,1781339440000,-1823.0033,7.678e-05,2]
[424952417,1781339440000,-49639.1229,7.678e-05,2]
[424952418,1781339440000,-1192.07,7.716e-05,2]
[424952419,1781339440000,-172.76944782,7.748e-05,2]
[424952420,1781339440000,-500.0,7.776e-05,2]
[424952414,1781339440000,-500.41287869,7.677e-05,2]
[424952413,1781339440000,-500.41287869,7.677e-05,2]
[424952412,1781339440000,-500.41287869,7.677e-05,2]
[424952415,1781339440000,-500.41287869,7.677e-05,2]
[424952458,1781339441000,-500.0,8.44e-05,2]
[424952465,1781339441000,-250.0,8.441e-05,2]
[424952466,1781339441000,-500.0,8.441e-05,2]
[424952462,1781339441000,-300.0,8.44e-05,2]
[424952461,1781339441000,-300.0,8.44e-05,2]
[424952460,1781339441000,-500.0,8.44e-05,2]
[424952459,1781339441000,-500.0,8.44e-05,2]
[424952457,1781339441000,-500.0,8.44e-05,2]
[424952455,1781339441000,-300.0,8.331e-05,2]
[424952446,1781339441000,-9999.99,8.219e-05,2]
[424952454,1781339441000,-1852.42,8.297e-05,2]
[424952453,1781339441000,-1240.36,8.254e-05,2]
[424952452,1781339441000,-353.89,8.219e-05,2]
[424952451,1781339441000,-3230.57,8.219e-05,2]
[424952447,1781339441000,-1562.11,8.219e-05,2]
[424952449,1781339441000,-3753.82,8.219e-05,2]
[424952450,1781339441000,-9999.99,8.219e-05,2]
[424952448,1781339441000,-24999.99,8.219e-05,2]
[424952445,1781339441000,-162.1,8.219e-05,2]
[424952456,1781339441000,-250.0,8.44e-05,2]
[424952464,1781339441000,-703.75691383,8.441e-05,2]
[424952463,1781339441000,-500.0,8.441e-05,2]
[424952468,1781339441000,-330.26409809,8.441e-05,2]
[424952489,1781339441000,-16689.18497879,9.558e-05,2]
[424952488,1781339441000,-18569.07178913,9.558e-05,2]
[424952487,1781339441000,-12412.97738005,9.558e-05,2]
[424952486,1781339441000,-624.19747981,9.537e-05,2]
[424952482,1781339441000,-500.0,9.288e-05,2]
[424952483,1781339441000,-350.0,9.525e-05,2]
[424952485,1781339441000,-165.71,9.535e-05,2]
[424952481,1781339441000,-1240.36,9.286e-05,2]
[424952484,1781339441000,-350.0,9.535e-05,2]
[424952480,1781339441000,-500.0,9.263e-05,2]
[424952467,1781339441000,-300.0,8.441e-05,2]
[424952478,1781339441000,-500.0,8.989e-05,2]
[424952470,1781339441000,-300.0,8.444e-05,2]
[424952469,1781339441000,-300.0,8.444e-05,2]
[424952473,1781339441000,-7036.36243388,8.558e-05,2]
[424952475,1781339441000,-500.0,8.715e-05,2]
[424952479,1781339441000,-2000.0,9.247e-05,2]
[424952474,1781339441000,-1192.07,8.681e-05,2]
[424952471,1781339441000,-284.66353698,8.444e-05,2]
[424952477,1781339441000,-419.42402529,8.812e-05,2]
[424952476,1781339441000,-255.0,8.81e-05,2]
[424952472,1781339441000,-2666.28277725,8.558e-05,2]
[424952496,1781339443000,-500.41287869,7.677e-05,2]
[424952497,1781339443000,-8435.42112121,9.558e-05,2]
[424952498,1781339443000,-1192.07,9.645e-05,2]
[424952500,1781339443000,-22864.59155573,9.67e-05,2]
[424952502,1781339443000,-121.87783164,9.67e-05,2]
[424952501,1781339443000,-495.07917635,7.776e-05,2]
[424952499,1781339443000,-482.24,9.658e-05,2]
[424952510,1781339444000,-261.646186,7.677e-05,2]
[424952512,1781339446000,-238.76669269,7.677e-05,2]
[424952513,1781339446000,-391.83852952,7.677e-05,2]
[424952514,1781339446000,-108.57434917,7.677e-05,2]
[424952516,1781339446000,-500.41287869,7.677e-05,2]
[424952515,1781339446000,-500.41287869,7.677e-05,2]
[424952517,1781339446000,-500.41287869,7.677e-05,2]
[424952518,1781339446000,-500.41287869,7.677e-05,2]
[424952521,1781339446000,-500.41287869,7.677e-05,2]
[424952522,1781339446000,-500.41287869,7.677e-05,2]
[424952519,1781339446000,-500.41287869,7.677e-05,2]
[424952520,1781339446000,-500.41287869,7.677e-05,2]
[424952548,1781339446000,-325.46472217,7.677e-05,2]
[424952546,1781339446000,-373.27509963,7.677e-05,2]
[424952528,1781339446000,-127.13777906,7.677e-05,2]
[424952525,1781339446000,-500.41287869,7.677e-05,2]
[424952526,1781339446000,-169.16158379,7.677e-05,2]
[424952524,1781339446000,-500.41287869,7.677e-05,2]
[424952523,1781339446000,-500.41287869,7.677e-05,2]
[424952527,1781339446000,-331.2512949,7.677e-05,2]
[424952838,1781339575000,-1000.0,0.00015,10]
[424952837,1781339575000,-150.0,7.347e-05,2]
[424952844,1781339576000,-1000.0,0.00015,10]
[424952839,1781339576000,-1000.0,0.00015,10]
[424952842,1781339576000,-1000.0,0.00015,10]
[424952840,1781339576000,-1000.0,0.00015,10]
[424952841,1781339576000,-1000.0,0.00015,10]
[424952843,1781339576000,-1000.0,0.00015,10]
[424952847,1781339576000,-1000.0,0.00015,10]
[424952845,1781339576000,-1000.0,0.00015,10]
[424952848,1781339576000,-1000.0,0.00015,10]
[424952849,1781339576000,-1000.0,0.00015,10]
[424952850,1781339576000,-1000.0,0.00015,10]
[424952846,1781339576000,-1000.0,0.00015,10]
[424952851,1781339629000,-150.0,7.571e-05,2]
[424952852,1781339682000,-150.0,7.571e-05,2]
[424952853,1781339735000,-300.0,7.57e-05,2]
[424952854,1781339789000,-1257.38,7.265e-05,2]
[424952855,1781339815000,-1257.38,7.265e-05,2]
[424952856,1781339838000,-885.57,7.137e-05,2]
[424952857,1781339890000,-150.0,7.208e-05,2]
[424952858,1781339943000,-251.18831744,7.263e-05,2]
[424952860,1781339971000,150.0,9.726e-05,5]
[424952861,1781339972000,150.0,9.726e-05,5]
[424952862,1781339972000,200.0,9.726e-05,5]
[424952863,1781339996000,-153.48885001,7.263e-05,2]
[424952871,1781340094000,158.73,5.566e-05,2]
[424952873,1781340099000,1185.91809648,8.536e-05,3]
[424952875,1781340147000,-466.11,6.972e-05,2]
[424952876,1781340201000,-445.09,6.999e-05,2]
[424952877,1781340213000,500.0,9.726e-05,5]
[424952878,1781340213000,500.0,9.726e-05,5]
[424952879,1781340213000,500.0,9.726e-05,5]
[424952880,1781340213000,500.0,9.726e-05,5]
[424952881,1781340213000,500.0,9.726e-05,5]
[424952883,1781340213000,500.0,9.726e-05,5]
[424952882,1781340213000,500.0,9.726e-05,5]
[424952885,1781340213000,500.0,9.726e-05,5]
[424952886,1781340213000,500.0,9.726e-05,5]
[424952888,1781340213000,150.0,9.726e-05,5]
[424952887,1781340213000,500.0,9.726e-05,5]
[424952889,1781340213000,500.0,9.726e-05,5]
[424952891,1781340213000,150.0,9.726e-05,5]
[424952890,1781340213000,600.0,9.726e-05,5]
[424952884,1781340213000,500.0,9.726e-05,5]
[424952896,1781340214000,250.0,9.726e-05,5]
[424952895,1781340214000,150.0,9.726e-05,5]
[424952894,1781340214000,150.0,9.726e-05,5]
[424952892,1781340214000,350.0,9.726e-05,5]
[424952893,1781340214000,150.0,9.726e-05,5]
[424952897,1781340254000,-153.0,7.069e-05,2]
[424952898,1781340307000,-153.0,7.139e-05,2]
[424952899,1781340314000,1469.12,6.734e-05,2]
[424952900,1781340340000,-300.0,7.194e-05,2]
[424952902,1781340340000,-119.36067714,7.195e-05,2]
[424952901,1781340340000,-346.55542345,7.195e-05,2]
[424952903,1781340361000,-56.47114507,7.195e-05,2]
[424952907,1781340379000,500.0,9.726e-05,5]
[424952906,1781340379000,500.0,9.726e-05,5]
[424952905,1781340379000,500.0,9.726e-05,5]
[424952904,1781340379000,152.28554388,9.726e-05,5]
[424952908,1781340380000,500.0,9.726e-05,5]
[424952911,1781340381000,500.0,9.726e-05,5]
[424952909,1781340381000,500.0,9.726e-05,5]
[424952910,1781340381000,500.0,9.726e-05,5]
[424952915,1781340382000,160.0,9.726e-05,5]
[424952914,1781340382000,500.0,9.726e-05,5]
[424952913,1781340382000,500.0,9.726e-05,5]
[424952912,1781340382000,500.0,9.726e-05,5]
[424952917,1781340383000,5076.34,6.683e-05,2]
[424952916,1781340383000,8372.15,6.683e-05,2]
[424952919,1781340414000,-2236.95670847,7.014e-05,2]
[424952920,1781340415000,1852.42,6.664e-05,2]
[424952921,1781340437000,-1500.56131773,7.014e-05,2]
[424952922,1781340438000,-747.25909373,7.014e-05,2]
[424952923,1781340459000,-1500.56131773,7.014e-05,2]
[424952924,1781340482000,-2935.6529,7.014e-05,2]
[424952930,1781340483000,157.13818737,9.726e-05,5]
[424952929,1781340483000,150.0,9.726e-05,5]
[424952928,1781340483000,150.0,9.726e-05,5]
[424952927,1781340483000,150.0,9.726e-05,5]
[424952926,1781340483000,150.0,9.726e-05,5]
[424952925,1781340483000,150.0,9.726e-05,5]
[424952932,1781340509000,-500.0,7.013e-05,2]
[424952934,1781340551000,-500.0,7.013e-05,2]
[424952933,1781340551000,-500.0,7.013e-05,2]
[424952935,1781340551000,-144.17878754,7.013e-05,2]
[424952936,1781340551000,-54.56060202,7.013e-05,2]
[424952937,1781340551000,-500.0,7.013e-05,2]
[424952943,1781340551000,-944.1837437,7.013e-05,2]
[424952938,1781340551000,-500.0,7.013e-05,2]
[424952944,1781340551000,-446.98022459,7.013e-05,2]
[424952942,1781340551000,-944.1837437,7.013e-05,2]
[424952939,1781340551000,-944.1837437,7.013e-05,2]
[424952940,1781340551000,-944.1837437,7.013e-05,2]
[424952941,1781340551000,-944.1837437,7.013e-05,2]
[424952951,1781340556000,-329.3672649,7.013e-05,2]
[424952948,1781340556000,-944.1837437,7.013e-05,2]
[424952950,1781340556000,-392.08410993,7.013e-05,2]
[424952949,1781340556000,-944.1837437,7.013e-05,2]
[424952947,1781340556000,-784.90628651,7.013e-05,2]
[424952946,1781340556000,-159.27745719,7.013e-05,2]
[424952945,1781340556000,-497.20351911,7.013e-05,2]
[424952952,1781340564000,-222.73236887,7.013e-05,2]
[424952953,1781340564000,-944.1837437,7.013e-05,2]
[424952955,1781340564000,-944.1837437,7.013e-05,2]
[424952954,1781340564000,-944.1837437,7.013e-05,2]
[424952956,1781340564000,-944.1837437,7.013e-05,2]
[424952957,1781340564000,-944.1837437,7.013e-05,2]
[424952959,1781340564000,-944.1837437,7.013e-05,2]
[424952958,1781340564000,-944.1837437,7.013e-05,2]
[424952961,1781340564000,-944.1837437,7.013e-05,2]
[424952962,1781340564000,-944.1837437,7.013e-05,2]
[424952963,1781340564000,-944.1837437,7.013e-05,2]
[424952964,1781340564000,-944.1837437,7.013e-05,2]
[424952965,1781340564000,-944.1837437,7.013e-05,2]
[424952966,1781340564000,-944.1837437,7.013e-05,2]
[424952960,1781340564000,-944.1837437,7.013e-05,2]
[424952967,1781340564000,-944.1837437,7.013e-05,2]
[424952976,1781340565000,-944.1837437,7.013e-05,2]
[424952977,1781340565000,-944.1837437,7.013e-05,2]
[424952975,1781340565000,-944.1837437,7.013e-05,2]
[424952974,1781340565000,-944.1837437,7.013e-05,2]
[424952973,1781340565000,-944.1837437,7.013e-05,2]
[424952970,1781340565000,-944.1837437,7.013e-05,2]
[424952971,1781340565000,-944.1837437,7.013e-05,2]
[424952969,1781340565000,-944.1837437,7.013e-05,2]
[424952968,1781340565000,-944.1837437,7.013e-05,2]
[424952972,1781340565000,-944.1837437,7.013e-05,2]
[424952978,1781340565000,-944.1837437,7.013e-05,2]
[424952986,1781340565000,-944.1837437,7.013e-05,2]
[424952979,1781340565000,-944.1837437,7.013e-05,2]
[424952980,1781340565000,-944.1837437,7.013e-05,2]
[424952990,1781340565000,-944.1837437,7.013e-05,2]
[424952989,1781340565000,-944.1837437,7.013e-05,2]
[424952988,1781340565000,-944.1837437,7.013e-05,2]
[424952987,1781340565000,-944.1837437,7.013e-05,2]
[424952984,1781340565000,-944.1837437,7.013e-05,2]
[424952983,1781340565000,-944.1837437,7.013e-05,2]
[424952982,1781340565000,-944.1837437,7.013e-05,2]
[424952981,1781340565000,-944.1837437,7.013e-05,2]
[424952985,1781340565000,-944.1837437,7.013e-05,2]
[424953002,1781340566000,-944.18374369,7.013e-05,2]
[424953001,1781340566000,-944.18374369,7.013e-05,2]
[424953000,1781340566000,-944.18374369,7.013e-05,2]
[424952999,1781340566000,-944.18374369,7.013e-05,2]
[424952998,1781340566000,-944.18374369,7.013e-05,2]
[424952995,1781340566000,-242.58879641,7.013e-05,2]
[424952996,1781340566000,-944.18374369,7.013e-05,2]
[424952994,1781340566000,-944.1837437,7.013e-05,2]
[424952993,1781340566000,-944.1837437,7.013e-05,2]
[424952991,1781340566000,-944.1837437,7.013e-05,2]
[424952997,1781340566000,-944.18374369,7.013e-05,2]
[424952992,1781340566000,-944.1837437,7.013e-05,2]
[424953004,1781340566000,-944.18374369,7.013e-05,2]
[424953005,1781340566000,-944.18374369,7.013e-05,2]
[424953006,1781340566000,-944.18374369,7.013e-05,2]
[424953007,1781340566000,-944.18374369,7.013e-05,2]
[424953008,1781340566000,-944.18374369,7.013e-05,2]
[424953010,1781340566000,-944.18374369,7.013e-05,2]
[424953009,1781340566000,-944.18374369,7.013e-05,2]
[424953011,1781340566000,-944.18374369,7.013e-05,2]
[424953013,1781340566000,-944.18374369,7.013e-05,2]
[424953012,1781340566000,-944.18374369,7.013e-05,2]
[424953014,1781340566000,-944.18374369,7.013e-05,2]
[424953015,1781340566000,-944.18374369,7.013e-05,2]
[424953016,1781340566000,-944.18374369,7.013e-05,2]
[424953003,1781340566000,-944.18374369,7.013e-05,2]
[424953017,1781340567000,-944.18374369,7.013e-05,2]
[424953018,1781340567000,-944.18374369,7.013e-05,2]
[424953022,1781340567000,-409.61158439,7.013e-05,2]
[424953021,1781340567000,-944.18374369,7.013e-05,2]
[424953020,1781340567000,-944.18374369,7.013e-05,2]
[424953019,1781340567000,-944.18374369,7.013e-05,2]
[424953025,1781340568000,-944.18374369,7.013e-05,2]
[424953023,1781340568000,-534.5721593,7.013e-05,2]
[424953024,1781340568000,-944.18374369,7.013e-05,2]
[424953027,1781340569000,-944.18374369,7.013e-05,2]
[424953029,1781340569000,-944.18374368,7.013e-05,2]
[424953028,1781340569000,-175.64631691,7.013e-05,2]
[424953031,1781340569000,-944.18374368,7.013e-05,2]
[424953026,1781340569000,-944.18374369,7.013e-05,2]
[424953032,1781340569000,-944.18374368,7.013e-05,2]
[424953033,1781340569000,-944.18374368,7.013e-05,2]
[424953036,1781340569000,-470.14770111,7.013e-05,2]
[424953035,1781340569000,-500.0,7.013e-05,2]
[424953034,1781340569000,-500.0,7.013e-05,2]
[424953030,1781340569000,-944.18374368,7.013e-05,2]
[424953044,1781340576000,-1065.73504288,7.198e-05,2]
[424953042,1781340576000,-1482.16202906,7.129e-05,2]
[424953043,1781340576000,-1899.34842859,7.198e-05,2]
[424953041,1781340576000,-2400.58797094,7.129e-05,2]
[424953039,1781340576000,-374.77866234,7.014e-05,2]
[424953040,1781340576000,-250.0,7.105e-05,2]
[424953038,1781340576000,-326.29152548,7.013e-05,2]
[424953037,1781340576000,-29.85229889,7.013e-05,2]
[424953045,1781340601000,-169.81215749,7.012e-05,2]
[424953046,1781340601000,-150.0,7.18e-05,2]
[424953047,1781340601000,-164.69652853,7.198e-05,2]
[424953049,1781340601000,-2903.57689079,7.265e-05,2]
[424953050,1781340601000,-3538.08557681,7.265e-05,2]
[424953051,1781340601000,-1203.15590485,7.265e-05,2]
[424953048,1781340601000,-150.0,7.251e-05,2]
[424953072,1781340632000,-150.99,7.452e-05,2]
[424953071,1781340632000,-150.0,7.452e-05,2]
[424953075,1781340632000,-24999.99,7.452e-05,2]
[424953073,1781340632000,-8694.49,7.452e-05,2]
[424953069,1781340632000,-172.76944783,7.409e-05,2]
[424953070,1781340632000,-176.71135637,7.416e-05,2]
[424953077,1781340632000,-9999.99,7.453e-05,2]
[424953066,1781340632000,-150.0,7.393e-05,2]
[424953065,1781340632000,-150.0,7.322e-05,2]
[424953064,1781340632000,-4033.05162755,7.265e-05,2]
[424953062,1781340632000,-500.0,7.012e-05,2]
[424953063,1781340632000,-250.0,7.138e-05,2]
[424953074,1781340632000,-3230.57,7.452e-05,2]
[424953076,1781340632000,-2913.43,7.453e-05,2]
[424953067,1781340632000,-172.76944783,7.409e-05,2]
[424953087,1781340632000,-299.99,7.453e-05,2]
[424953078,1781340632000,-60198.47579058,7.453e-05,2]
[424953106,1781340632000,-9999.99,7.481e-05,2]
[424953103,1781340632000,-999.99,7.481e-05,2]
[424953096,1781340632000,-3440.66,7.464e-05,2]
[424953089,1781340632000,-9999.99,7.453e-05,2]
[424953099,1781340632000,-1492.59,7.481e-05,2]
[424953093,1781340632000,-1562.11,7.464e-05,2]
[424953068,1781340632000,-172.76944783,7.409e-05,2]
[424953091,1781340632000,-150.0,7.464e-05,2]
[424953079,1781340632000,-3792.52452,7.453e-05,2]
[424953083,1781340632000,-4999.99,7.453e-05,2]
[424953080,1781340632000,-3422.0867765,7.453e-05,2]
[424953081,1781340632000,-58600.41291292,7.453e-05,2]
[424953088,1781340632000,-1583.15,7.453e-05,2]
[424953085,1781340632000,-1219.3,7.453e-05,2]
[424953144,1781340633000,-2000.0,8.219e-05,2]
[424953145,1781340633000,-162.1,8.219e-05,2]
[424953152,1781340633000,-392.0,8.372e-05,2]
[424953153,1781340633000,-362.0,8.396e-05,2]
[424953156,1781340633000,-377.0,8.448e-05,2]
[424953149,1781340633000,-392.0,8.319e-05,2]
[424953147,1781340633000,-2781.3,8.219e-05,2]
[424953154,1781340633000,-1469.12,8.418e-05,2]
[424953148,1781340633000,-1721.74,8.219e-05,2]
[424953151,1781340633000,-158.73,8.35e-05,2]
[424953146,1781340633000,-500.0,8.219e-05,2]
[424953150,1781340633000,-392.0,8.334e-05,2]
[424953155,1781340633000,-70670.0118,8.437e-05,2]
[424953157,1781340633000,-377.0,8.45e-05,2]
[424953159,1781340633000,-392.0,8.475e-05,2]
[424953160,1781340633000,-362.0,8.475e-05,2]
[424953141,1781340633000,-362.0,8.125e-05,2]
[424953143,1781340633000,-392.0,8.202e-05,2]
[424953142,1781340633000,-255.0,8.197e-05,2]
[424953140,1781340633000,-2000.0,8e-05,2]
[424953110,1781340633000,-3753.82,7.481e-05,2]
[424953114,1781340633000,-150.0,7.536e-05,2]
[424953127,1781340633000,-150.0,7.607e-05,2]
[424953117,1781340633000,-165.71,7.556e-05,2]
[424953120,1781340633000,-699.689622,7.57e-05,2]
[424953129,1781340633000,-176.71135637,7.633e-05,2]
[424953135,1781340633000,-160.0,7.711e-05,2]
[424953158,1781340633000,-347.0,8.474e-05,2]
[424953125,1781340633000,-216.029201,7.606e-05,2]
[424953134,1781340633000,-160.0,7.709e-05,2]
[424953132,1781340633000,-971.03912997,7.677e-05,2]
[424953133,1781340633000,-179.0,7.678e-05,2]
[424953137,1781340633000,-193.33086742,7.714e-05,2]
[424953136,1781340633000,-250.0,7.713e-05,2]
[424953138,1781340633000,-250.0,7.715e-05,2]
[424953139,1781340633000,-3791.26986839,7.839e-05,2]
[424953123,1781340633000,-1469.12,7.576e-05,2]
[424953162,1781340633000,-322.51623986,8.518e-05,2]
[424953130,1781340633000,-10948.39,7.671e-05,2]
[424953163,1781340633000,-3792.5245,8.537e-05,2]
[424953184,1781340633000,-1469.12,9.26e-05,2]
[424953190,1781340633000,-264.13075012,9.534e-05,2]
[424953186,1781340633000,-500.0,9.315e-05,2]
[424953191,1781340633000,-9022.87525827,9.54e-05,2]
[424953181,1781340633000,-541.713,9.177e-05,2]
[424953187,1781340633000,-419.42402529,9.375e-05,2]
[424953193,1781340633000,-162.1,9.589e-05,2]
[424953192,1781340633000,-624.19747981,9.589e-05,2]
[424953194,1781340633000,-7013.52,9.67e-05,2]
[424953195,1781340633000,-9999.99,9.67e-05,2]
[424953196,1781340633000,-6562.46647468,9.699e-05,2]
[424953197,1781340633000,-17089.53352532,9.699e-05,2]
[424953201,1781340633000,-1254.41808677,9.735e-05,2]
[424953199,1781340633000,-151.0,9.732e-05,2]
[424953198,1781340633000,-188.85854515,9.73e-05,2]
[424953200,1781340633000,-264389.72025012,9.735e-05,2]
[424953161,1781340633000,-500.0,8.493e-05,2]
[424953185,1781340633000,-500.0,9.288e-05,2]
[424953188,1781340633000,-4449.1422167,9.411e-05,2]
[424953131,1781340633000,-387.02332496,7.677e-05,2]
[424953182,1781340633000,-176.038,9.177e-05,2]
[424953165,1781340633000,-175569.47005615,8.537e-05,2]
[424953189,1781340633000,-500.0,9.425e-05,2]
[424953167,1781340633000,-377.0,8.547e-05,2]
[424953166,1781340633000,-26393.63181521,8.537e-05,2]
[424953169,1781340633000,-402.18969323,8.612e-05,2]
[424953179,1781340633000,-500.0,9.041e-05,2]
[424953168,1781340633000,-392.0,8.563e-05,2]
[424953170,1781340633000,-377.0,8.627e-05,2]
[424953172,1781340633000,-50804.4623355,8.637e-05,2]
[424953164,1781340633000,-1298036.89812864,8.537e-05,2]
[424953178,1781340633000,-433.0,9.017e-05,2]
[424953175,1781340633000,-500.0,8.767e-05,2]
[424953174,1781340633000,-392.0,8.683e-05,2]
[424953176,1781340633000,-396.17,8.835e-05,2]
[424953171,1781340633000,-95195.0146843,8.637e-05,2]
[424953173,1781340633000,-162.1,8.676e-05,2]
[424953177,1781340633000,-482.23,8.971e-05,2]
[424953183,1781340633000,-2000.0,9.247e-05,2]
[424953180,1781340633000,-162.1,9.132e-05,2]
[424953295,1781340639000,-17650.39609433,8.439e-05,2]
[424953297,1781340639000,-35725.4568,9.539e-05,2]
[424953294,1781340639000,-10005.22116643,8.389e-05,2]
[424953296,1781340639000,-26403.93695626,8.439e-05,2]
[424953299,1781340639000,-1898556.95211754,9.735e-05,2]
[424953298,1781340639000,-377.0,9.675e-05,2]
[424953326,1781340640000,-226.65659514,0.0001,2]
[424953321,1781340640000,-201.0,9.989e-05,2]
[424953325,1781340640000,-3600.0,0.0001,3]
[424953323,1781340640000,-201.0,9.989e-05,2]
[424953324,1781340640000,-1174.35451801,9.991e-05,2]
[424953322,1781340640000,-201.0,9.989e-05,2]
[424953320,1781340640000,-201.0,9.989e-05,2]
[424953318,1781340640000,-201.0,9.989e-05,2]
[424953316,1781340640000,-201.0,9.989e-05,2]
[424953319,1781340640000,-201.0,9.989e-05,2]
[424953317,1781340640000,-201.0,9.989e-05,2]
[424953304,1781340640000,-158094.36630065,9.735e-05,2]
[424953315,1781340640000,-201.0,9.989e-05,2]
[424953311,1781340640000,-10210.83,9.879e-05,2]
[424953312,1781340640000,-2400.0,9.9e-05,3]
[424953310,1781340640000,-1233.63,9.879e-05,2]
[424953314,1781340640000,-1067.23192201,9.919e-05,2]
[424953309,1781340640000,-674.31,9.879e-05,2]
[424953308,1781340640000,-1200.0,9.8e-05,3]
[424953306,1781340640000,-3884.7277366,9.735e-05,2]
[424953307,1781340640000,-211.83062856,9.735e-05,2]
[424953327,1781340640000,-1158.2585461,0.0001,2]
[424953305,1781340640000,-2126.34652663,9.735e-05,2]
[424953313,1781340640000,-736.0,9.918e-05,2]
[424953328,1781340640000,-2770.96725658,0.0001,2]
[424953335,1781340640000,-2000.0,0.0001,2]
[424953330,1781340640000,-163.67,0.0001,2]
[424953355,1781340640000,-164078.05683734,0.00010333,2]
[424953353,1781340640000,-2944.99,0.00010312,2]
[424953352,1781340640000,-2332.7557565,0.00010304,2]
[424953354,1781340640000,-22602.3616081,0.00010333,2]
[424953351,1781340640000,-4000.0,0.00010278,2]
[424953331,1781340640000,-166.85767715,0.0001,2]
[424953348,1781340640000,-152.0,0.00010211,2]
[424953349,1781340640000,-151.0,0.00010211,2]
[424953339,1781340640000,-162.1,0.00010046,2]
[424953347,1781340640000,-2000.0,0.000102,2]
[424953342,1781340640000,-1469.12,0.00010101,2]
[424953350,1781340640000,-2000.0,0.00010274,2]
[424953341,1781340640000,-263.19842322,0.000101,2]
[424953343,1781340640000,-152.0,0.00010127,2]
[424953329,1781340640000,-389.58785416,0.0001,2]
[424953332,1781340640000,-326.80174045,0.0001,2]
[424953336,1781340640000,-629.9394786,0.0001,2]
[424953334,1781340640000,-662.98804455,0.0001,2]
[424953344,1781340640000,-151.0,0.00010127,2]
[424953337,1781340640000,-629.9394786,0.0001,2]
[424953338,1781340640000,-4000.0,0.00010027,2]
[424953345,1781340640000,-279.85746921,0.00010142,2]
[424953340,1781340640000,-165.3,0.00010089,2]
[424953346,1781340640000,-531.0,0.000102,5]
[424953333,1781340640000,-326.80174045,0.0001,2]
[424953361,1781340643000,-321.76344,0.00010333,2]
[424953360,1781340643000,-903.28823356,0.00010333,2]
[424953359,1781340643000,-614.54,0.00010333,2]
[424953367,1781340646000,-2575.01931915,0.00010126,2]
[424953369,1781340646000,-2575.3,0.00010333,2]
[424953370,1781340646000,-18888.17923554,0.00010333,2]
[424953368,1781340646000,-3623.9157,0.00010333,2]
[424953372,1781340701000,171.72882395,7.264e-05,7]
[424953373,1781340773000,-500.0,7.264e-05,2]
[424953374,1781340826000,-197.18443192,7.264e-05,2]
[424953375,1781340880000,-150.0,7.263e-05,2]
[424953380,1781340934000,-775.34250487,7.263e-05,2]
[424953383,1781340986000,-300.0,7.263e-05,2]
[424953385,1781341040000,-202.92128061,7.264e-05,2]
[424953387,1781341093000,-864.43688609,7.263e-05,2]
[424953388,1781341147000,-500.0,7.262e-05,2]
[424953389,1781341201000,-239.11757269,7.262e-05,2]
[424953392,1781341254000,-150.0,7.261e-05,2]